[Event "44th Chess Olympiad Open 2022"]
[Site "Chennai"]
[Date "2022.08.02"]
[Round "5.81"]
[White "Tracey, Shaun M"]
[Black "Jamal, Hamid Harmon Gulamo"]
[Result "0-1"]
[WhiteElo "1650"]
[BlackElo "1617"]
[Annotator "NA RC"]
[PlyCount "142"]
[EventDate "2022.??.??"]
[TimeControl "60"]

1. e4 {[%emt 0:00:02]} c5 {[%emt 0:00:04]} 2. Nc3 {[%emt 0:00:06]} g6 {[%emt 0:
00:00]} 3. f4 {[%emt 0:00:08]} Bg7 {[%emt 0:00:36]} 4. Nf3 {[%emt 0:00:07]} Nc6
{[%emt 0:00:57]} 5. a4 {[%emt 0:00:11]} e6 {[%emt 0:01:19]} 6. e5 {[%emt 0:00:
00]} d5 {[%emt 0:01:22]} 7. d4 {[%emt 0:00:41]} cxd4 {[%emt 0:04:55]} 8. Nxd4 {
[%emt 0:01:46]} Nge7 {[%emt 0:00:43]} 9. Ncb5 {[%emt 0:04:42]} O-O {[%emt 0:00:
00]} 10. c3 {[%emt 0:12:44]} f6 {[%emt 0:05:18]} 11. exf6 {[%emt 0:06:33]} Bxf6
{[%emt 0:07:26]} 12. Be3 {[%emt 0:05:53]} a6 {[%emt 0:02:04]} 13. Nxc6 {
[%emt 0:02:08]} bxc6 {[%emt 0:01:55]} 14. Nd4 {[%emt 0:00:25]} Qc7 {[%emt 0:00:
00]} 15. Be2 {[%emt 0:12:54]} Bxd4 {[%emt 0:01:16]} 16. Qxd4 {[%emt 0:03:24]}
Nf5 {[%emt 0:01:18]} 17. Qb6 {[%emt 0:02:12]} Qd7 {[%emt 0:29:24]} 18. Bc5 {
[%emt 0:04:58]} Rf7 {[%emt 0:01:07]} 19. O-O-O {[%emt 0:02:43]} Nd6 {[%emt 0:
00:00]} 20. Qb4 {[%emt 0:07:26]} Ne4 {[%emt 0:06:57]} 21. Be3 {[%emt 0:02:21]}
Qe8 {[%emt 0:04:53]} 22. Bf3 {[%emt 0:06:19]} Rb7 {[%emt 0:01:04]} 23. Qa3 {
[%emt 0:00:31]} Nf6 {[%emt 0:00:41]} 24. Bd4 {[%emt 0:00:49]} Nd7 {[%emt 0:00:
00]} 25. Rde1 {[%emt 0:02:06]} Rab8 {[%emt 0:01:17]} 26. Re2 {[%emt 0:05:17]}
Nb6 {[%emt 0:00:49]} 27. Bxb6 {[%emt 0:07:20]} Rxb6 {[%emt 0:00:12]} 28. Qc5 {
[%emt 0:00:31]} Qf8 {[%emt 0:00:38]} 29. Qxf8+ {[%emt 0:03:16]} Kxf8 {[%emt 0:
00:00]} 30. Bg4 {[%emt 0:01:27]} c5 {[%emt 0:00:17]} 31. Rhe1 {[%emt 0:00:20]}
Kf7 {[%emt 0:00:30]} 32. Rd2 {[%emt 0:00:57]} Bd7 {[%emt 0:00:49]} 33. Bd1 {
[%emt 0:00:34]} Kf6 {[%emt 0:02:50]} 34. Re5 {[%emt 0:00:38]} Bc6 {[%emt 0:00:
00]} 35. Rde2 {[%emt 0:00:47]} Ba8 {[%emt 0:00:33]} 36. g4 {[%emt 0:02:24]} d4
{[%emt 0:00:33]} 37. Rxc5 {[%emt 0:01:00]} dxc3 {[%emt 0:00:46]} 38. g5+ {
[%emt 0:01:08]} Ke7 {[%emt 0:00:41]} 39. Rxc3 {[%emt 0:00:34]} Kd6 {[%emt 0:00:
00]} 40. Rd2+ {[%emt 0:00:23]} Bd5 {[%emt 0:00:19]} 41. Rh3 {[%emt 0:08:59]}
R8b7 {[%emt 0:01:14]} 42. Be2 {[%emt 0:01:09]} Rb4 {[%emt 0:01:31]} 43. Bxa6 {
[%emt 0:00:53]} Rc7+ {[%emt 0:01:44]} 44. Rc2 {[%emt 0:05:26]} Rf7 {[%emt 0:00:
00]} 45. Rf2 {[%emt 0:04:25]} Rxa4 {[%emt 0:00:18]} 46. Bd3 {[%emt 0:01:48]}
Rb7 {[%emt 0:02:39]} 47. Bb1 {[%emt 0:02:58]} Ra1 {[%emt 0:01:21]} 48. Rd2 {
[%emt 0:02:52]} Rc7+ {[%emt 0:00:59]} 49. Rc3 {[%emt 0:00:23]} Rf7 {[%emt 0:00:
00]} 50. Rd4 {[%emt 0:01:06]} e5 {[%emt 0:08:39]} 51. fxe5+ {[%emt 0:00:59]}
Ke6 {[%emt 0:00:34]} 52. Rxd5 {[%emt 0:07:04]} Kxd5 {[%emt 0:01:00]} 53. Rd3+ {
[%emt 0:00:20]} Kxe5 {[%emt 0:00:15]} 54. Re3+ {[%emt 0:00:35]} Kf4 {[%emt 0:
00:00]} 55. Re4+ {[%emt 0:00:38]} Kxg5 {[%emt 0:00:16]} 56. h4+ {[%emt 0:00:15]
} Kh5 {[%emt 0:00:36]} 57. Re1 {[%emt 0:00:18]} Kxh4 {[%emt 0:00:23]} 58. Rh1+
{[%emt 0:00:33]} Kg3 {[%emt 0:00:14]} 59. Kd2 {[%emt 0:00:14]} Ra8 {[%emt 0:00:
00]} 60. b3 {[%emt 0:00:51]} Rf2+ {[%emt 0:00:26]} 61. Kc3 {[%emt 0:00:30]}
Rf3+ {[%emt 0:00:37]} 62. Kb2 {[%emt 0:00:23]} Rb8 {[%emt 0:00:45]} 63. Bc2 {
[%emt 0:00:24]} Rf2 {[%emt 0:00:52]} 64. Kb1 {[%emt 0:00:41]} Rb7 {[%emt 0:00:
00]} 65. Re1 {[%emt 0:00:32]} g5 {[%emt 0:00:43]} 66. Re3+ {[%emt 0:00:36]} Rf3
{[%emt 0:01:13]} 67. Re1 {[%emt 0:01:11]} Rbf7 {[%emt 0:00:37]} 68. Kb2 {
[%emt 0:00:00]} g4 {[%emt 0:00:23]} 69. Rh1 {[%emt 0:00:23]} Rf2 {[%emt 0:00:
00]} 70. Kc1 {[%emt 0:00:42]} Rf1+ {[%emt 0:00:10]} 71. Rxf1 {[%emt 0:00:03]}
Rxf1+ {[%emt 0:00:21]} 0-1

[Event "44th Chess Olympiad Open 2022"]
[Site "Chennai"]
[Date "2022.08.02"]
[Round "5.81"]
[White "Shaw, Clifford"]
[Black "Paiva, Donaldo"]
[Result "0-1"]
[WhiteElo "1615"]
[BlackElo "2191"]
[Annotator "NA RC"]
[PlyCount "64"]
[EventDate "2022.??.??"]
[TimeControl "60"]

1. e4 {[%emt 0:00:02]} c5 {[%emt 0:00:07]} 2. d4 {[%emt 0:00:05]} cxd4 {
[%emt 0:00:05]} 3. c3 {[%emt 0:00:05]} Nf6 {[%emt 0:00:05]} 4. e5 {[%emt 0:00:
00]} Nd5 {[%emt 0:00:05]} 5. Bc4 {[%emt 0:00:18]} Nb6 {[%emt 0:00:45]} 6. Bb3 {
[%emt 0:00:11]} d5 {[%emt 0:00:10]} 7. Nf3 {[%emt 0:01:44]} dxc3 {[%emt 0:00:
00]} 8. Nxc3 {[%emt 0:00:08]} e6 {[%emt 0:00:04]} 9. O-O {[%emt 0:00:21]} Be7 {
[%emt 0:00:07]} 10. Bf4 {[%emt 0:04:05]} Nc6 {[%emt 0:01:04]} 11. a3 {[%emt 0:
00:00]} Bd7 {[%emt 0:00:25]} 12. Bc2 {[%emt 0:04:48]} O-O {[%emt 0:05:10]} 13.
Qd3 {[%emt 0:02:21]} g6 {[%emt 0:00:11]} 14. h4 {[%emt 0:01:05]} Bxh4 {[%emt 0:
00:00]} 15. g3 {[%emt 0:00:21]} Be7 {[%emt 0:00:08]} 16. Kg2 {[%emt 0:00:24]}
f5 {[%emt 0:03:26]} 17. exf6 {[%emt 0:02:30]} Bxf6 {[%emt 0:00:08]} 18. Rh1 {
[%emt 0:31:55]} Rf7 {[%emt 0:01:11]} 19. Rxh7 {[%emt 0:02:21]} Rxh7 {[%emt 0:
00:00]} 20. Qxg6+ {[%emt 0:02:11]} Rg7 {[%emt 0:00:32]} 21. Qh6 {[%emt 0:00:48]
} e5 {[%emt 0:05:17]} 22. Rh1 {[%emt 0:03:07]} exf4 {[%emt 0:01:32]} 23. Bg6 {
[%emt 0:28:50]} Kf8 {[%emt 0:00:32]} 24. Re1 {[%emt 0:10:15]} fxg3 {[%emt 0:00:
00]} 25. fxg3 {[%emt 0:02:33]} Ne7 {[%emt 0:00:21]} 26. Bh7 {[%emt 0:01:24]}
Nf5 {[%emt 0:02:06]} 27. Bxf5 {[%emt 0:00:47]} Bxf5 {[%emt 0:00:06]} 28. Ne5 {
[%emt 0:00:38]} Kg8 {[%emt 0:01:18]} 29. Rh1 {[%emt 0:00:32]} Bxe5 {[%emt 0:00:
00]} 30. Qh8+ {[%emt 0:00:10]} Kf7 {[%emt 0:00:06]} 31. Qh5+ {[%emt 0:00:02]}
Ke6 {[%emt 0:00:13]} 32. Rf1 {[%emt 0:00:42]} Qg5 {[%emt 0:00:35]} 0-1

[Event "44th Chess Olympiad Open 2022"]
[Site "Chennai"]
[Date "2022.08.02"]
[Round "5.82"]
[White "Marie, Patrick"]
[Black "Elvis Havyarimana"]
[Result "0-1"]
[WhiteElo "1921"]
[BlackElo "1724"]
[Annotator "NA RC"]
[PlyCount "126"]
[EventDate "2022.??.??"]
[TimeControl "60"]

1. d4 {[%emt 0:00:03]} e6 {[%emt 0:00:02]} 2. c4 {[%emt 0:00:06]} d5 {[%emt 0:
00:00]} 3. Nf3 {[%emt 0:00:09]} Nf6 {[%emt 0:01:17]} 4. g3 {[%emt 0:00:17]}
dxc4 {[%emt 0:00:25]} 5. Qa4+ {[%emt 0:00:17]} Nc6 {[%emt 0:00:07]} 6. Qxc4 {
[%emt 0:00:13]} Bd6 {[%emt 0:00:34]} 7. Bg2 {[%emt 0:00:30]} O-O {[%emt 0:00:
00]} 8. Bg5 {[%emt 0:01:46]} h6 {[%emt 0:00:15]} 9. Bd2 {[%emt 0:00:13]} Re8 {
[%emt 0:00:40]} 10. Nc3 {[%emt 0:05:36]} a6 {[%emt 0:00:22]} 11. O-O {[%emt 0:
00:00]} e5 {[%emt 0:05:48]} 12. d5 {[%emt 0:04:26]} Ne7 {[%emt 0:06:18]} 13. e4
{[%emt 0:04:43]} c6 {[%emt 0:03:33]} 14. Rfd1 {[%emt 0:04:57]} cxd5 {[%emt 0:
00:00]} 15. Nxd5 {[%emt 0:00:35]} Nexd5 {[%emt 0:01:47]} 16. exd5 {[%emt 0:00:
00]} Bg4 {[%emt 0:02:52]} 17. Re1 {[%emt 0:06:29]} Qd7 {[%emt 0:03:59]} 18. Bc3
{[%emt 0:11:48]} Rac8 {[%emt 0:03:47]} 19. Qb3 {[%emt 0:01:51]} e4 {[%emt 0:00:
00]} 20. Bxf6 {[%emt 0:00:46]} exf3 {[%emt 0:01:18]} 21. Bxf3 {[%emt 0:01:14]}
Bxf3 {[%emt 0:02:43]} 22. Qxf3 {[%emt 0:00:02]} gxf6 {[%emt 0:00:15]} 23. Qxf6
{[%emt 0:00:01]} Bf8 {[%emt 0:01:23]} 24. Red1 {[%emt 0:00:16]} Bg7 {[%emt 0:
00:00]} 25. Qf4 {[%emt 0:00:20]} Rc5 {[%emt 0:03:05]} 26. Qf3 {[%emt 0:01:29]}
Rd8 {[%emt 0:02:14]} 27. Rac1 {[%emt 0:01:23]} Rxd5 {[%emt 0:03:16]} 28. Rxd5 {
[%emt 0:00:14]} Qxd5 {[%emt 0:00:12]} 29. Qxd5 {[%emt 0:00:01]} Rxd5 {[%emt 0:
00:00]} 30. Rc8+ {[%emt 0:00:04]} Bf8 {[%emt 0:00:41]} 31. Rc7 {[%emt 0:00:42]}
b6 {[%emt 0:00:33]} 32. Rc2 {[%emt 0:03:01]} Bc5 {[%emt 0:02:45]} 33. Kg2 {
[%emt 0:00:21]} Kg7 {[%emt 0:01:08]} 34. g4 {[%emt 0:00:45]} h5 {[%emt 0:01:32]
} 35. h3 {[%emt 0:00:23]} hxg4 {[%emt 0:00:09]} 36. hxg4 {[%emt 0:00:13]} f5 {
[%emt 0:01:00]} 37. f3 {[%emt 0:00:22]} fxg4 {[%emt 0:00:13]} 38. fxg4 {
[%emt 0:00:02]} Rd3 {[%emt 0:00:32]} 39. a3 {[%emt 0:05:12]} a5 {[%emt 0:00:25]
} 40. b4 {[%emt 0:00:32]} axb4 {[%emt 0:00:23]} 41. axb4 {[%emt 0:30:01]} Bxb4
{[%emt 0:30:23]} 42. Rc7+ {[%emt 0:00:29]} Kg6 {[%emt 0:00:38]} 43. Rc6+ {
[%emt 0:00:02]} Rd6 {[%emt 0:00:15]} 44. Rc8 {[%emt 0:01:31]} Kg5 {[%emt 0:00:
00]} 45. Kf3 {[%emt 0:01:14]} Rf6+ {[%emt 0:02:33]} 46. Ke4 {[%emt 0:01:54]}
Kxg4 {[%emt 0:00:31]} 47. Rg8+ {[%emt 0:00:20]} Kh5 {[%emt 0:00:02]} 48. Kd5 {
[%emt 0:01:22]} Bc5 {[%emt 0:00:07]} 49. Kc4 {[%emt 0:00:20]} Rg6 {[%emt 0:00:
00]} 50. Re8 {[%emt 0:00:30]} Kg5 {[%emt 0:00:11]} 51. Kb5 {[%emt 0:00:15]} Kf5
{[%emt 0:00:05]} 52. Re1 {[%emt 0:00:47]} Re6 {[%emt 0:00:06]} 53. Rf1+ {
[%emt 0:00:13]} Ke5 {[%emt 0:00:01]} 54. Re1+ {[%emt 0:00:01]} Kd6 {[%emt 0:00:
00]} 55. Rd1+ {[%emt 0:00:21]} Kc7 {[%emt 0:00:08]} 56. Kc4 {[%emt 0:10:49]}
Kc6 {[%emt 0:00:21]} 57. Kb3 {[%emt 0:00:13]} Re4 {[%emt 0:00:14]} 58. Rh1 {
[%emt 0:00:51]} Re3+ {[%emt 0:00:59]} 59. Kc2 {[%emt 0:00:14]} Kd5 {[%emt 0:00:
00]} 60. Rh4 {[%emt 0:00:55]} Bd4 {[%emt 0:00:33]} 61. Rh5+ {[%emt 0:08:03]}
Kc4 {[%emt 0:00:42]} 62. Rh1 {[%emt 0:01:02]} Re2+ {[%emt 0:00:12]} 63. Kb1 {
[%emt 0:00:25]} b5 {[%emt 0:01:37]} 0-1

[Event "44th Chess Olympiad Open 2022"]
[Site "Chennai"]
[Date "2022.08.02"]
[Round "5.82"]
[White "Muheto, Dieudonne"]
[Black "Naipal, Hoolan"]
[Result "1-0"]
[WhiteElo "1830"]
[BlackElo "1785"]
[Annotator "NA RC"]
[PlyCount "131"]
[EventDate "2022.??.??"]
[TimeControl "60"]

1. d4 {[%emt 0:00:09]} Nf6 {[%emt 0:00:15]} 2. Nf3 {[%emt 0:00:18]} e6 {
[%emt 0:00:16]} 3. Bf4 {[%emt 0:00:21]} d5 {[%emt 0:00:36]} 4. e3 {[%emt 0:00:
00]} c5 {[%emt 0:00:30]} 5. c3 {[%emt 0:00:16]} Nc6 {[%emt 0:00:19]} 6. Ne5 {
[%emt 0:01:37]} Bd6 {[%emt 0:01:27]} 7. Bb5 {[%emt 0:00:27]} Qc7 {[%emt 0:00:
00]} 8. Nd2 {[%emt 0:00:38]} O-O {[%emt 0:06:24]} 9. Ndf3 {[%emt 0:05:54]} Ne4
{[%emt 0:01:34]} 10. Bd3 {[%emt 0:04:18]} f6 {[%emt 0:05:57]} 11. Nxc6 {
[%emt 0:01:13]} bxc6 {[%emt 0:08:15]} 12. Bxd6 {[%emt 0:02:38]} Qxd6 {[%emt 0:
00:00]} 13. Nd2 {[%emt 0:00:31]} Nxd2 {[%emt 0:01:09]} 14. Qxd2 {[%emt 0:00:18]
} e5 {[%emt 0:00:43]} 15. O-O {[%emt 0:00:33]} e4 {[%emt 0:03:16]} 16. Be2 {
[%emt 0:00:21]} f5 {[%emt 0:04:34]} 17. f4 {[%emt 0:01:18]} exf3 {[%emt 0:00:
00]} 18. Rxf3 {[%emt 0:00:33]} Bd7 {[%emt 0:05:10]} 19. dxc5 {[%emt 0:03:22]}
Qxc5 {[%emt 0:00:51]} 20. Qd4 {[%emt 0:00:16]} Qe7 {[%emt 0:02:39]} 21. Bd3 {
[%emt 0:01:04]} Be6 {[%emt 0:05:48]} 22. Raf1 {[%emt 0:00:36]} g6 {[%emt 0:00:
00]} 23. h4 {[%emt 0:00:21]} c5 {[%emt 0:01:26]} 24. Qe5 {[%emt 0:00:54]} Rae8
{[%emt 0:02:27]} 25. h5 {[%emt 0:01:48]} Bf7 {[%emt 0:04:59]} 26. Qf4 {[%emt 0:
00:00]} Kg7 {[%emt 0:12:29]} 27. Rh3 {[%emt 0:06:17]} Qe5 {[%emt 0:03:55]} 28.
Qh4 {[%emt 0:10:19]} Qe7 {[%emt 0:08:04]} 29. Qg3 {[%emt 0:00:30]} Qe5 {
[%emt 0:00:17]} 30. Rxf5 {[%emt 0:01:24]} Qxg3 {[%emt 0:02:17]} 31. Rxg3 {
[%emt 0:00:14]} Re7 {[%emt 0:03:21]} 32. hxg6 {[%emt 0:03:27]} hxg6 {[%emt 0:
00:00]} 33. Rfg5 {[%emt 0:00:13]} Rb8 {[%emt 0:01:02]} 34. Bxg6 {[%emt 0:01:32]
} Rxb2 {[%emt 0:01:01]} 35. Bxf7+ {[%emt 0:06:42]} Kxf7 {[%emt 0:00:06]} 36.
Rg7+ {[%emt 0:02:35]} Ke8 {[%emt 0:00:16]} 37. Rxe7+ {[%emt 0:00:15]} Kxe7 {
[%emt 0:00:07]} 38. Rg7+ {[%emt 0:00:13]} Ke6 {[%emt 0:00:07]} 39. Rxa7 {
[%emt 0:00:29]} Re2 {[%emt 0:00:12]} 40. Ra8 {[%emt 0:01:51]} Kf6 {[%emt 0:00:
00]} 41. Ra5 {[%emt 0:30:39]} Rxe3 {[%emt 0:32:33]} 42. Rxc5 {[%emt 0:00:16]}
Ke6 {[%emt 0:00:27]} 43. a4 {[%emt 0:00:30]} Re1+ {[%emt 0:00:15]} 44. Kf2 {
[%emt 0:00:29]} Ra1 {[%emt 0:00:05]} 45. Ra5 {[%emt 0:07:13]} Rc1 {[%emt 0:00:
00]} 46. g4 {[%emt 0:01:45]} Rxc3 {[%emt 0:00:11]} 47. g5 {[%emt 0:00:53]} Ra3
{[%emt 0:05:17]} 48. g6 {[%emt 0:01:34]} Kf6 {[%emt 0:00:22]} 49. Ra6+ {
[%emt 0:00:14]} Kg7 {[%emt 0:00:14]} 50. Ke2 {[%emt 0:00:38]} d4 {[%emt 0:00:
00]} 51. Kd2 {[%emt 0:00:51]} Kh6 {[%emt 0:04:50]} 52. Kc2 {[%emt 0:01:18]} Kg7
{[%emt 0:01:54]} 53. Kb2 {[%emt 0:00:30]} Rf3 {[%emt 0:00:35]} 54. Rd6 {
[%emt 0:00:30]} d3 {[%emt 0:00:40]} 55. Kc3 {[%emt 0:00:41]} Rf4 {[%emt 0:00:
00]} 56. a5 {[%emt 0:00:22]} Ra4 {[%emt 0:00:45]} 57. a6 {[%emt 0:00:15]} Ra3+
{[%emt 0:00:19]} 58. Kd2 {[%emt 0:03:06]} Kh6 {[%emt 0:00:24]} 59. Rb6 {
[%emt 0:00:52]} Kg7 {[%emt 0:00:22]} 60. Ke3 {[%emt 0:02:45]} Kh6 {[%emt 0:00:
00]} 61. Rd6 {[%emt 0:01:17]} Kg7 {[%emt 0:00:10]} 62. Rd7+ {[%emt 0:05:54]}
Kxg6 {[%emt 0:00:15]} 63. Ra7 {[%emt 0:00:09]} Kf6 {[%emt 0:00:29]} 64. Ra8 {
[%emt 0:00:05]} Ke6 {[%emt 0:00:26]} 65. a7 {[%emt 0:00:11]} Kd7 {[%emt 0:00:
00]} 66. Rh8 {[%emt 0:01:48]} 1-0

[Event "44th Chess Olympiad Open 2022"]
[Site "Chennai"]
[Date "2022.08.02"]
[Round "5.83"]
[White "Van den Brink, Peter"]
[Black "Kibrom Weldegebriel Beraki"]
[Result "1-0"]
[WhiteElo "2167"]
[BlackElo "1793"]
[Annotator "NA RC"]
[PlyCount "95"]
[EventDate "2022.??.??"]
[TimeControl "60"]

1. c4 {[%emt 0:00:02]} Nf6 {[%emt 0:02:01]} 2. g3 {[%emt 0:01:09]} g6 {[%emt 0:
00:00]} 3. Bg2 {[%emt 0:00:08]} Bg7 {[%emt 0:00:11]} 4. Nc3 {[%emt 0:00:08]}
O-O {[%emt 0:00:21]} 5. e4 {[%emt 0:00:30]} d6 {[%emt 0:00:10]} 6. Nge2 {
[%emt 0:00:38]} c5 {[%emt 0:01:21]} 7. O-O {[%emt 0:00:19]} Nc6 {[%emt 0:00:30]
} 8. d3 {[%emt 0:02:07]} a6 {[%emt 0:00:46]} 9. h3 {[%emt 0:02:38]} Rb8 {
[%emt 0:00:28]} 10. a4 {[%emt 0:01:22]} Bd7 {[%emt 0:00:31]} 11. Be3 {[%emt 0:
00:00]} e5 {[%emt 0:04:10]} 12. f4 {[%emt 0:02:37]} Nd4 {[%emt 0:00:26]} 13. g4
{[%emt 0:34:51]} h5 {[%emt 0:10:56]} 14. gxh5 {[%emt 0:14:20]} Nxh5 {[%emt 0:
00:00]} 15. f5 {[%emt 0:00:17]} b5 {[%emt 0:17:51]} 16. axb5 {[%emt 0:12:15]}
axb5 {[%emt 0:01:07]} 17. b3 {[%emt 0:05:46]} b4 {[%emt 0:04:31]} 18. Bxd4 {
[%emt 0:08:23]} exd4 {[%emt 0:02:02]} 19. Nd5 {[%emt 0:00:01]} Be5 {[%emt 0:00:
00]} 20. Qd2 {[%emt 0:04:30]} Kg7 {[%emt 0:07:48]} 21. Ra7 {[%emt 0:00:06]} Ra8
{[%emt 0:01:06]} 22. f6+ {[%emt 0:02:42]} Nxf6 {[%emt 0:08:38]} 23. Rxa8 {
[%emt 0:00:26]} Qxa8 {[%emt 0:00:25]} 24. Nxf6 {[%emt 0:00:03]} Bxf6 {[%emt 0:
00:00]} 25. Rxf6 {[%emt 0:00:03]} Bxh3 {[%emt 0:04:12]} 26. Rxd6 {[%emt 0:00:
00]} Bg4 {[%emt 0:02:34]} 27. e5 {[%emt 0:01:58]} Qe8 {[%emt 0:01:44]} 28. Rd5
{[%emt 0:00:51]} Qe7 {[%emt 0:01:28]} 29. Nf4 {[%emt 0:01:50]} Rh8 {[%emt 0:00:
00]} 30. Qf2 {[%emt 0:00:19]} Bf5 {[%emt 0:00:40]} 31. Qg3 {[%emt 0:00:13]} Rh4
{[%emt 0:02:06]} 32. Bh3 {[%emt 0:00:25]} Rxf4 {[%emt 0:05:29]} 33. Qxf4 {
[%emt 0:00:01]} Bxh3 {[%emt 0:00:17]} 34. Qf6+ {[%emt 0:00:09]} Qxf6 {[%emt 0:
00:00]} 35. exf6+ {[%emt 0:00:02]} Kxf6 {[%emt 0:00:21]} 36. Rxc5 {[%emt 0:00:
00]} Bf5 {[%emt 0:00:50]} 37. Rb5 {[%emt 0:00:41]} Bxd3 {[%emt 0:00:39]} 38.
Rxb4 {[%emt 0:00:08]} Ke5 {[%emt 0:01:44]} 39. Rb5+ {[%emt 0:00:09]} Ke4 {
[%emt 0:01:07]} 40. Rb7 {[%emt 0:00:35]} f5 {[%emt 0:00:19]} 41. Rg7 {[%emt 0:
00:00]} Bc2 {[%emt 0:37:18]} 42. c5 {[%emt 0:00:00]} Kd5 {[%emt 0:00:00]} 43.
b4 {[%emt 0:00:00]} Ba4 {[%emt 0:00:00]} 44. Rxg6 {[%emt 0:00:00]} d3 {[%emt 0:
00:00]} 45. Kf2 {[%emt 0:00:00]} d2 {[%emt 0:00:23]} 46. Rd6+ {[%emt 0:00:00]}
Kc4 {[%emt 0:01:06]} 47. Rxd2 {[%emt 0:00:00]} Kxb4 {[%emt 0:00:13]} 48. Rd4+ {
[%emt 0:00:00]} 1-0

[Event "44th Chess Olympiad Open 2022"]
[Site "Chennai"]
[Date "2022.08.02"]
[Round "5.83"]
[White "Asante Debesai Zerabruk"]
[Black "Croes, Octavio"]
[Result "1-0"]
[WhiteElo "1785"]
[BlackElo "1794"]
[Annotator "NA RC"]
[PlyCount "125"]
[EventDate "2022.??.??"]
[TimeControl "60"]

1. e4 {[%emt 0:01:04]} c5 {[%emt 0:00:07]} 2. Nf3 {[%emt 0:00:03]} Nc6 {
[%emt 0:00:08]} 3. d3 {[%emt 0:00:03]} g6 {[%emt 0:01:12]} 4. g3 {[%emt 0:00:
00]} Bg7 {[%emt 0:00:06]} 5. Bg2 {[%emt 0:00:06]} d6 {[%emt 0:00:14]} 6. O-O {
[%emt 0:00:20]} Nf6 {[%emt 0:00:08]} 7. Nbd2 {[%emt 0:00:04]} O-O {[%emt 0:00:
00]} 8. c3 {[%emt 0:00:04]} Rb8 {[%emt 0:01:16]} 9. Re1 {[%emt 0:05:18]} Qc7 {
[%emt 0:03:48]} 10. Nf1 {[%emt 0:05:44]} b5 {[%emt 0:00:55]} 11. d4 {[%emt 0:
00:00]} cxd4 {[%emt 0:05:04]} 12. cxd4 {[%emt 0:00:10]} Nb4 {[%emt 0:00:43]}
13. Ne3 {[%emt 0:17:42]} Bb7 {[%emt 0:07:33]} 14. a3 {[%emt 0:09:14]} Nc6 {
[%emt 0:02:20]} 15. d5 {[%emt 0:20:24]} Na5 {[%emt 0:03:35]} 16. Nd4 {[%emt 0:
00:00]} Qb6 {[%emt 0:10:38]} 17. b4 {[%emt 0:07:33]} Nc4 {[%emt 0:00:26]} 18.
Nxc4 {[%emt 0:00:27]} bxc4 {[%emt 0:00:09]} 19. Bb2 {[%emt 0:00:10]} Nd7 {
[%emt 0:02:35]} 20. Bc3 {[%emt 0:05:44]} Ne5 {[%emt 0:01:16]} 21. Bf1 {[%emt 0:
00:00]} Rfc8 {[%emt 0:05:38]} 22. a4 {[%emt 0:01:34]} a6 {[%emt 0:04:05]} 23.
a5 {[%emt 0:02:22]} Qa7 {[%emt 0:03:09]} 24. b5 {[%emt 0:01:52]} axb5 {[%emt 0:
00:00]} 25. Nxb5 {[%emt 0:00:02]} Qc5 {[%emt 0:00:11]} 26. Rb1 {[%emt 0:01:20]}
Ba6 {[%emt 0:01:38]} 27. Bd4 {[%emt 0:01:22]} Nf3+ {[%emt 0:00:48]} 28. Qxf3 {
[%emt 0:00:02]} Bxd4 {[%emt 0:00:14]} 29. Nxd4 {[%emt 0:00:02]} Qxd4 {[%emt 0:
00:00]} 30. Red1 {[%emt 0:00:49]} Qc5 {[%emt 0:00:32]} 31. Qc3 {[%emt 0:00:28]}
Rb5 {[%emt 0:00:57]} 32. Rxb5 {[%emt 0:00:30]} Qxb5 {[%emt 0:01:18]} 33. Rc1 {
[%emt 0:01:09]} Rc5 {[%emt 0:00:29]} 34. Rc2 {[%emt 0:01:12]} Qb3 {[%emt 0:00:
00]} 35. Qxb3 {[%emt 0:01:37]} cxb3 {[%emt 0:00:08]} 36. Rxc5 {[%emt 0:00:22]}
b2 {[%emt 0:00:10]} 37. Rc8+ {[%emt 0:00:26]} Bxc8 {[%emt 0:00:12]} 38. Bd3 {
[%emt 0:00:05]} Ba6 {[%emt 0:01:21]} 39. Bb1 {[%emt 0:01:34]} e6 {[%emt 0:00:
00]} 40. dxe6 {[%emt 0:02:30]} fxe6 {[%emt 0:00:08]} 41. f3 {[%emt 0:32:24]}
Kf7 {[%emt 0:31:04]} 42. Kf2 {[%emt 0:00:23]} Ke7 {[%emt 0:00:48]} 43. Ke3 {
[%emt 0:00:33]} Kd7 {[%emt 0:03:27]} 44. Kd4 {[%emt 0:00:00]} e5+ {[%emt 0:00:
00]} 45. Kc3 {[%emt 0:00:00]} Be2 {[%emt 0:00:00]} 46. f4 {[%emt 0:00:00]} Kc6
{[%emt 0:00:00]} 47. Kxb2 {[%emt 0:00:00]} Kb5 {[%emt 0:00:00]} 48. Kc3 {
[%emt 0:00:00]} Kxa5 {[%emt 0:00:00]} 49. Bd3 {[%emt 0:00:00]} Bg4 {[%emt 0:00:
00]} 50. f5 {[%emt 0:00:00]} gxf5 {[%emt 0:00:00]} 51. exf5 {[%emt 0:00:00]} d5
{[%emt 0:00:00]} 52. f6 {[%emt 0:00:00]} Be6 {[%emt 0:00:00]} 53. Bxh7 {
[%emt 0:00:00]} d4+ {[%emt 0:00:00]} 54. Kd3 {[%emt 0:00:00]} Bf7 {[%emt 0:00:
00]} 55. g4 {[%emt 0:00:00]} Kb4 {[%emt 0:00:00]} 56. g5 {[%emt 0:00:00]} Bc4+
{[%emt 0:00:00]} 57. Kd2 {[%emt 0:00:00]} Bb3 {[%emt 0:04:51]} 58. g6 {[%emt 0:
00:00]} e4 {[%emt 0:00:13]} 59. f7 {[%emt 0:00:02]} e3+ {[%emt 0:00:26]} 60.
Ke1 {[%emt 0:00:01]} Kc3 {[%emt 0:01:49]} 61. f8=Q {[%emt 0:00:45]} d3 {
[%emt 0:00:50]} 62. Qc5+ {[%emt 0:00:18]} Bc4 {[%emt 0:00:24]} 63. Qxe3 {
[%emt 0:00:28]} 1-0

[Event "44th Chess Olympiad Open 2022"]
[Site "Chennai"]
[Date "2022.08.02"]
[Round "5.84"]
[White "Lesbros Bernard"]
[Black "Mohamed Ali Dima"]
[Result "0-1"]
[WhiteElo "1865"]
[BlackElo "1582"]
[Annotator "NA RC"]
[PlyCount "70"]
[EventDate "2022.??.??"]
[TimeControl "60"]

1. d4 {[%emt 0:00:13]} d5 {[%emt 0:00:08]} 2. c4 {[%emt 0:00:17]} c6 {[%emt 0:
00:00]} 3. Nf3 {[%emt 0:00:20]} Bf5 {[%emt 0:00:19]} 4. cxd5 {[%emt 0:00:22]}
cxd5 {[%emt 0:00:03]} 5. Nc3 {[%emt 0:00:21]} e6 {[%emt 0:00:11]} 6. e3 {
[%emt 0:03:37]} Nd7 {[%emt 0:00:53]} 7. Bb5 {[%emt 0:02:05]} Ngf6 {[%emt 0:00:
00]} 8. h3 {[%emt 0:04:03]} a6 {[%emt 0:02:21]} 9. Be2 {[%emt 0:01:10]} Bd6 {
[%emt 0:00:17]} 10. O-O {[%emt 0:01:45]} Ne4 {[%emt 0:01:35]} 11. Nd2 {[%emt 0:
00:00]} Ndf6 {[%emt 0:05:07]} 12. Ndxe4 {[%emt 0:03:27]} Nxe4 {[%emt 0:07:23]}
13. Nxe4 {[%emt 0:02:16]} dxe4 {[%emt 0:00:22]} 14. f4 {[%emt 0:07:21]} h5 {
[%emt 0:06:28]} 15. Bd2 {[%emt 0:05:24]} g5 {[%emt 0:05:04]} 16. Bb4 {[%emt 0:
00:00]} Bc7 {[%emt 0:09:02]} 17. g4 {[%emt 0:11:53]} gxf4 {[%emt 0:05:14]} 18.
Qa4+ {[%emt 0:11:38]} b5 {[%emt 0:00:44]} 19. Bxb5+ {[%emt 0:00:17]} axb5 {
[%emt 0:00:00]} 20. Qxb5+ {[%emt 0:00:24]} Qd7 {[%emt 0:00:02]} 21. Qxd7+ {
[%emt 0:00:14]} Kxd7 {[%emt 0:00:01]} 22. gxf5 {[%emt 0:00:41]} f3 {[%emt 0:00:
00]} 23. fxe6+ {[%emt 0:00:46]} fxe6 {[%emt 0:00:02]} 24. Kf2 {[%emt 0:05:22]}
h4 {[%emt 0:01:51]} 25. Rg1 {[%emt 0:02:05]} Bg3+ {[%emt 0:02:02]} 26. Rxg3 {
[%emt 0:05:06]} hxg3+ {[%emt 0:00:07]} 27. Kxg3 {[%emt 0:00:08]} Rag8+ {
[%emt 0:00:02]} 28. Kf4 {[%emt 0:08:45]} Rh4+ {[%emt 0:00:55]} 29. Ke5 {
[%emt 0:00:14]} Rg5+ {[%emt 0:00:46]} 30. Kf6 {[%emt 0:00:20]} Rf5+ {[%emt 0:
00:00]} 31. Kg6 {[%emt 0:00:17]} f2 {[%emt 0:00:16]} 32. Rf1 {[%emt 0:01:01]}
Rxh3 {[%emt 0:00:26]} 33. d5 {[%emt 0:01:49]} Rg3+ {[%emt 0:00:16]} 34. Kh6 {
[%emt 0:00:25]} Rg1 {[%emt 0:01:02]} 35. dxe6+ {[%emt 0:02:16]} Kxe6 {[%emt 0:
00:00]} 0-1